fUST/lending_fUST_20250208
["ID","MTS","AMOUNT","RATE_DAILY","PERIOD"]
[352214734,1739002095622,50000.0,0.00019,120]
[352214773,1739002232863,-300.0,0.00010129,2]
[352214774,1739002232922,-224.93686837,0.00010129,2]
[352214775,1739002232932,-238.47538119,0.00010235,2]
[352214776,1739002232942,-7876.6631541,0.00010335,2]
[352214777,1739002232951,-218.19091382,0.00010858,2]
[352214778,1739002232963,-300.0,0.00010957,2]
[352214779,1739002232973,-195.47236151,0.00010957,2]
[352214780,1739002232982,-500.0,0.00010958,2]
[352214781,1739002232995,-500.0,0.00010958,2]
[352214782,1739002233005,-500.0,0.00010958,2]
[352214784,1739002233015,-500.0,0.00010958,2]
[352214786,1739002233027,-500.0,0.00010958,2]
[352214788,1739002233037,-500.0,0.00010958,2]
[352214790,1739002233048,-500.0,0.00010958,2]
[352214792,1739002233058,-500.0,0.00010958,2]
[352214794,1739002233068,-500.0,0.00010958,2]
[352214796,1739002233078,-500.0,0.00010958,2]
[352214797,1739002233089,-500.0,0.00010958,2]
[352214798,1739002233099,-500.0,0.00010958,2]
[352214799,1739002233109,-500.0,0.00010958,2]
[352214800,1739002233118,-500.0,0.00010958,2]
[352214801,1739002233129,-500.0,0.00010958,2]
[352214802,1739002233140,-500.0,0.00010958,2]
[352214803,1739002233151,-500.0,0.00010958,2]
[352214804,1739002233161,-500.0,0.00010958,2]
[352214805,1739002233171,-500.0,0.00010958,2]
[352214806,1739002233181,-500.0,0.00010958,2]
[352214807,1739002233191,-500.0,0.00010958,2]
[352214808,1739002233200,-500.0,0.00010958,2]
[352214809,1739002233210,-500.0,0.00010958,2]
[352214810,1739002233220,-500.0,0.00010958,2]
[352214811,1739002233230,-500.0,0.00010958,2]
[352214812,1739002233239,-500.0,0.00010958,2]
[352214813,1739002233249,-500.0,0.00010958,2]
[352214814,1739002233258,-500.0,0.00010958,2]
[352214815,1739002233268,-500.0,0.00010958,2]
[352214816,1739002233277,-500.0,0.00010958,2]
[352214817,1739002233287,-500.0,0.00010958,2]
[352214818,1739002233296,-500.0,0.00010958,2]
[352214819,1739002233306,-500.0,0.00010958,2]
[352214820,1739002233315,-500.0,0.00010958,2]
[352214821,1739002233325,-500.0,0.00010958,2]
[352214822,1739002233336,-500.0,0.00010958,2]
[352214823,1739002233346,-500.0,0.00010958,2]
[352214824,1739002233356,-500.0,0.00010958,2]
[352214825,1739002233365,-500.0,0.00010958,2]
[352214826,1739002233375,-500.0,0.00010958,2]
[352214827,1739002233385,-500.0,0.00010958,2]
[352214828,1739002233395,-500.0,0.00010958,2]
[352214829,1739002233406,-500.0,0.00010958,2]
[352214830,1739002233416,-500.0,0.00010958,2]
[352214831,1739002233425,-500.0,0.00010958,2]
[352214832,1739002233436,-500.0,0.00010958,2]
[352214833,1739002233447,-500.0,0.00010958,2]
[352214834,1739002233456,-500.0,0.00010958,2]
[352214835,1739002233466,-680.41,0.00010958,2]
[352214836,1739002233476,-327.0341796,0.00010958,2]
[352214837,1739002233486,-500.0,0.00010958,2]
[352214838,1739002233496,-632.19,0.00010958,2]
[352214839,1739002233506,-500.0,0.00010958,2]
[352214840,1739002233516,-597.33,0.00010958,2]
[352214841,1739002233526,-500.0,0.00010958,2]
[352214842,1739002233536,-500.0,0.00010958,2]
[352214843,1739002233545,-500.0,0.00010958,2]
[352214844,1739002233555,-500.0,0.00010958,2]
[352214845,1739002233565,-500.0,0.00010958,2]
[352214846,1739002233575,-500.0,0.00010958,2]
[352214847,1739002233585,-202.84905446,0.00010958,2]
[352214848,1739002233595,-500.0,0.00010958,2]
[352214849,1739002233607,-500.0,0.00010958,2]
[352214850,1739002233618,-500.0,0.00010958,2]
[352214851,1739002233628,-500.0,0.00010958,2]
[352214852,1739002233641,-500.0,0.00010958,2]
[352214853,1739002233658,-500.0,0.00010958,2]
[352214854,1739002233668,-589.66968144,0.00010958,2]
[352214855,1739002233682,-500.0,0.00010958,2]
[352214856,1739002233695,-384.8637739,0.00010958,2]
[352214857,1739002233704,-500.0,0.00010958,2]
[352214858,1739002233713,-364.875413,0.00010958,2]
[352214859,1739002233724,-1119.43,0.00010958,2]
[352214860,1739002233734,-500.0,0.00010958,2]
[352214861,1739002233743,-500.0,0.00010958,2]
[352214862,1739002233753,-500.0,0.00010958,2]
[352214863,1739002233764,-500.0,0.00010958,2]
[352214864,1739002233775,-1131.56,0.00010958,2]
[352214865,1739002233784,-500.0,0.00010958,2]
[352214866,1739002233794,-500.0,0.00010958,2]
[352214867,1739002233803,-500.0,0.00010958,2]
[352214868,1739002233813,-500.0,0.00010958,2]
[352214869,1739002233824,-500.0,0.00010958,2]
[352214870,1739002233835,-500.0,0.00010958,2]
[352214871,1739002233845,-500.0,0.00010958,2]
[352214872,1739002233858,-812.23,0.00010958,2]
[352214873,1739002233869,-500.0,0.00010958,2]
[352214874,1739002233879,-500.0,0.00010958,2]
[352214875,1739002233889,-621.82,0.00010958,2]
[352214876,1739002233899,-497.3,0.00010958,2]
[352214877,1739002233908,-299.73412603,0.00010958,2]
[352214878,1739002233918,-500.0,0.00010958,2]
[352214879,1739002233928,-500.0,0.00010958,2]
[352214880,1739002233938,-500.0,0.00010958,2]
[352214881,1739002233948,-500.0,0.00010958,2]
[352214882,1739002233957,-500.0,0.00010958,2]
[352214883,1739002233967,-500.0,0.00010958,2]
[352214884,1739002233976,-500.0,0.00010958,2]
[352214885,1739002233986,-500.0,0.00010958,2]
[352214886,1739002233996,-500.0,0.00010958,2]
[352214887,1739002234007,-500.0,0.00010958,2]
[352214888,1739002234017,-556.64317837,0.00010958,2]
[352214889,1739002234027,-1366.73,0.00010958,2]
[352214890,1739002234037,-500.0,0.00010958,2]
[352214891,1739002234047,-500.0,0.00010958,2]
[352214892,1739002234057,-500.80123554,0.00010958,2]
[352214893,1739002234067,-500.0,0.00010958,2]
[352214894,1739002234077,-500.0,0.00010958,2]
[352214895,1739002234087,-500.0,0.00010958,2]
[352214896,1739002234096,-500.0,0.00010958,2]
[352214897,1739002234106,-500.0,0.00010958,2]
[352214898,1739002234116,-500.0,0.00010958,2]
[352214899,1739002234126,-500.0,0.00010958,2]
[352214900,1739002234139,-500.0,0.00010958,2]
[352214901,1739002234148,-503.38356112,0.00010958,2]
[352214902,1739002234159,-553.16,0.00010958,2]
[352214903,1739002234170,-301.34419279,0.00010958,2]
[352214904,1739002234179,-609.89,0.00010958,2]
[352214905,1739002234189,-500.0,0.00010958,2]
[352214906,1739002234198,-500.0,0.00010958,2]
[352214907,1739002234208,-500.0,0.00010958,2]
[352214908,1739002234218,-500.0,0.00010958,2]
[352214909,1739002234228,-780.9,0.00010958,2]
[352214910,1739002234237,-536.89,0.00010958,2]
[352214911,1739002234248,-500.0,0.00010958,2]
[352214912,1739002234257,-500.0,0.00010958,2]
[352214913,1739002234267,-500.0,0.00010958,2]
[352214914,1739002234276,-500.0,0.00010958,2]
[352214915,1739002234288,-3040.48389398,0.00010958,2]
[352214916,1739002234635,-569.06409585,0.00010958,2]
[352214928,1739002238615,-13649.23201017,0.00010958,2]
[352214929,1739002238625,-516.49,0.00010958,2]
[352214930,1739002238634,-3152.89,0.00010958,2]
[352214931,1739002238644,-500.0,0.00010958,2]
[352214932,1739002238655,-1098.98,0.00010958,2]
[352214933,1739002238664,-500.0,0.00010958,2]
[352214934,1739002238674,-500.0,0.00010958,2]
[352214935,1739002238688,-405.50295321,0.00010958,2]
[352214937,1739002238699,-500.0,0.00010958,2]
[352214939,1739002238708,-500.0,0.00010958,2]
[352214941,1739002238717,-868.87,0.00010958,2]
[352214942,1739002238729,-500.0,0.00010958,2]
[352214943,1739002238738,-500.0,0.00010958,2]
[352214944,1739002238748,-500.0,0.00010958,2]
[352214945,1739002238759,-500.0,0.00010958,2]
[352214946,1739002238770,-577.01,0.00010958,2]
[352214947,1739002238781,-500.0,0.00010958,2]
[352214948,1739002238791,-500.0,0.00010958,2]
[352214949,1739002238801,-500.0,0.00010958,2]
[352214950,1739002238810,-500.0,0.00010958,2]
[352214951,1739002238821,-500.0,0.00010958,2]
[352214952,1739002238830,-500.0,0.00010958,2]
[352214953,1739002238839,-500.0,0.00010958,2]
[352214954,1739002238849,-1248.14,0.00010958,2]
[352214955,1739002238858,-2467.84,0.00010958,2]
[352214956,1739002238867,-500.0,0.00010958,2]
[352214957,1739002238877,-500.0,0.00010958,2]
[352214958,1739002238886,-500.0,0.00010958,2]
[352214959,1739002238896,-500.0,0.00010958,2]
[352214960,1739002238905,-500.0,0.00010958,2]
[352214961,1739002238914,-500.0,0.00010958,2]
[352214962,1739002238923,-500.0,0.00010958,2]
[352214963,1739002238932,-2721.28,0.00010958,2]
[352214964,1739002238941,-505.96156691,0.00010958,2]
[352214965,1739002238951,-500.0,0.00010958,2]
[352214966,1739002238961,-1343.26,0.00010958,2]
[352214967,1739002238971,-500.0,0.00010958,2]
[352214968,1739002238980,-500.0,0.00010958,2]
[352214969,1739002238989,-941.48,0.00010958,2]
[352214970,1739002239000,-636.83,0.00010958,2]
[352214971,1739002239009,-500.0,0.00010958,2]
[352214972,1739002239018,-500.0,0.00010958,2]
[352214973,1739002239027,-500.0,0.00010958,2]
[352214974,1739002239037,-500.0,0.00010958,2]
[352214975,1739002239046,-500.0,0.00010958,2]
[352214976,1739002239056,-500.0,0.00010958,2]
[352214977,1739002239067,-500.0,0.00010958,2]
[352214978,1739002239077,-500.0,0.00010958,2]
[352214979,1739002239086,-861.13,0.00010958,2]
[352214980,1739002239096,-500.0,0.00010958,2]
[352214981,1739002239105,-940.08,0.00010958,2]
[352214982,1739002239115,-2160.96,0.00010958,2]
[352214983,1739002239124,-500.0,0.00010958,2]
[352214984,1739002239134,-500.0,0.00010958,2]
[352214985,1739002239144,-500.0,0.00010958,2]
[352214986,1739002239155,-500.0,0.00010958,2]
[352214987,1739002239164,-532.33870114,0.00010958,2]
[352214988,1739002239175,-1257.1,0.00010958,2]
[352214989,1739002239185,-1326.92,0.00010958,2]
[352214990,1739002239195,-500.0,0.00010958,2]
[352214991,1739002239204,-36551.32,0.00010958,2]
[352214992,1739002239214,-500.0,0.00010958,2]
[352214993,1739002239224,-10819.44,0.00010958,2]
[352214994,1739002239234,-561.44797022,0.00010958,2]
[352214995,1739002239245,-1216.12,0.00010958,2]
[352214996,1739002239255,-500.0,0.00010958,2]
[352214997,1739002239264,-500.0,0.00010958,2]
[352214998,1739002239274,-500.0,0.00010958,2]
[352214999,1739002239283,-1004.16,0.00010958,2]
[352215000,1739002239292,-500.0,0.00010958,2]
[352215001,1739002239302,-500.0,0.00010958,2]
[352215002,1739002239311,-500.0,0.00010958,2]
[352215003,1739002239320,-500.0,0.00010958,2]
[352215004,1739002239330,-500.0,0.00010958,2]
[352215005,1739002239339,-5269.89,0.00010958,2]
[352215006,1739002239349,-2264.18,0.00010958,2]
[352215007,1739002239359,-797.18,0.00010958,2]
[352215008,1739002239369,-500.0,0.00010958,2]
[352215009,1739002239379,-628.28103478,0.00010958,2]
[352215010,1739002239389,-1712.87,0.00010958,2]
[352215011,1739002239399,-500.0,0.00010958,2]
[352215012,1739002239408,-500.0,0.00010958,2]
[352215013,1739002239418,-563.17,0.00010958,2]
[352215014,1739002239428,-971.61,0.00010958,2]
[352215015,1739002239438,-500.0,0.00010958,2]
[352215016,1739002239448,-500.0,0.00010958,2]
[352215017,1739002239457,-1593.28,0.00010958,2]
[352215018,1739002239466,-500.0,0.00010958,2]
[352215019,1739002239476,-2771.28,0.00010958,2]
[352215020,1739002239485,-990.07,0.00010958,2]
[352215021,1739002239494,-500.0,0.00010958,2]
[352215022,1739002239504,-500.0,0.00010958,2]
[352215023,1739002239514,-500.0,0.00010958,2]
[352215024,1739002239523,-500.0,0.00010958,2]
[352215025,1739002239533,-1060.19,0.00010958,2]
[352215026,1739002239543,-500.0,0.00010958,2]
[352215027,1739002239552,-500.0,0.00010958,2]
[352215028,1739002239561,-500.0,0.00010958,2]
[352215029,1739002239570,-1133.34,0.00010958,2]
[352215030,1739002239580,-584.28,0.00010958,2]
[352215031,1739002239590,-500.0,0.00010958,2]
[352215032,1739002239600,-2995.22,0.00010958,2]
[352215033,1739002239610,-500.0,0.00010958,2]
[352215034,1739002239619,-500.0,0.00010958,2]
[352215035,1739002239628,-500.0,0.00010958,2]
[352215036,1739002239638,-2177.95,0.00010958,2]
[352215037,1739002239649,-1209.83,0.00010958,2]
[352215038,1739002239659,-343.50320879,0.00010958,2]
[352215039,1739002239668,-500.0,0.00010958,2]
[352215040,1739002239684,-500.0,0.00010958,2]
[352215041,1739002239694,-500.0,0.00010958,2]
[352215042,1739002239703,-315.70970659,0.00010958,2]
[352215043,1739002239712,-500.0,0.00010958,2]
[352215044,1739002239722,-500.0,0.00010958,2]
[352215045,1739002239732,-511.46809914,0.00010958,2]
[352215046,1739002239742,-2956.32,0.00010958,2]
[352215047,1739002239751,-500.0,0.00010958,2]
[352215048,1739002239762,-500.0,0.00010958,2]
[352215049,1739002239771,-1056.59,0.00010958,2]
[352215050,1739002239781,-500.0,0.00010958,2]
[352215051,1739002239791,-504.76,0.00010958,2]
[352215052,1739002239800,-500.0,0.00010958,2]
[352215053,1739002239811,-500.0,0.00010958,2]
[352215054,1739002239820,-500.0,0.00010958,2]
[352215055,1739002239829,-554.8,0.00010958,2]
[352215056,1739002239838,-500.0,0.00010958,2]
[352215057,1739002239848,-1012.06,0.00010958,2]
[352215058,1739002239857,-500.0,0.00010958,2]
[352215059,1739002239866,-500.0,0.00010958,2]
[352215060,1739002239875,-500.0,0.00010958,2]
[352215061,1739002239885,-500.0,0.00010958,2]
[352215062,1739002239897,-150.53276455,0.00010973,2]
[352215063,1739002239907,-500.0,0.00010973,2]
[352215064,1739002239916,-504.91411847,0.00010973,2]
[352215065,1739002239929,-500.0,0.00010973,2]
[352215066,1739002239939,-500.0,0.00010973,2]
[352215067,1739002239950,-500.0,0.00010973,2]
[352215068,1739002239959,-321.50910176,0.00010973,2]
[352215069,1739002239968,-500.88347879,0.00010973,2]
[352215070,1739002239977,-386.01861773,0.00010973,2]
[352215071,1739002239987,-278.00370003,0.00010973,2]
[352215072,1739002239996,-500.0,0.00010973,2]
[352215073,1739002240005,-500.0,0.00010973,2]
[352215074,1739002240014,-500.0,0.00010973,2]
[352215075,1739002240024,-632.19645104,0.00010973,2]
[352215076,1739002240032,-500.0,0.00010973,2]
[352215077,1739002240041,-3000.0,0.00010995,2]
[352215078,1739002240051,-304.27557325,0.00010999,2]
[352215079,1739002240060,-9783.14061428,0.00011,2]
[352215080,1739002240073,-32984.38013117,0.00011,2]
[352215081,1739002240086,-252493.36925455,0.00011,2]
[352215082,1739002240095,-500.0,0.00011095,2]
[352215083,1739002240104,-500.0,0.00011095,2]
[352215084,1739002240113,-500.0,0.00011095,2]
[352215085,1739002240122,-500.0,0.00011095,2]
[352215086,1739002240131,-500.0,0.00011095,2]
[352215087,1739002240142,-500.0,0.00011095,2]
[352215088,1739002240151,-500.0,0.00011095,2]
[352215089,1739002240160,-500.0,0.00011095,2]
[352215090,1739002240169,-500.0,0.00011095,2]
[352215092,1739002240178,-500.0,0.00011095,2]
[352215093,1739002240187,-500.0,0.00011095,2]
[352215094,1739002240196,-500.0,0.00011095,2]
[352215095,1739002240205,-500.0,0.00011095,2]
[352215096,1739002240214,-500.0,0.00011095,2]
[352215097,1739002240223,-500.0,0.00011095,2]
[352215098,1739002240232,-500.0,0.00011095,2]
[352215100,1739002240241,-500.0,0.00011095,2]
[352215101,1739002240250,-500.0,0.00011095,2]
[352215102,1739002240259,-500.0,0.00011095,2]
[352215103,1739002240269,-500.0,0.00011095,2]
[352215104,1739002240278,-500.0,0.00011095,2]
[352215105,1739002240287,-500.0,0.00011095,2]
[352215106,1739002240296,-500.0,0.00011095,2]
[352215107,1739002240305,-500.0,0.00011095,2]
[352215108,1739002240315,-500.0,0.00011095,2]
[352215109,1739002240324,-500.0,0.00011095,2]
[352215110,1739002240333,-500.0,0.00011095,2]
[352215111,1739002240342,-500.0,0.00011095,2]
[352215112,1739002240351,-500.0,0.00011095,2]
[352215113,1739002240360,-500.0,0.00011095,2]
[352215114,1739002240369,-500.0,0.00011095,2]
[352215115,1739002240378,-500.0,0.00011095,2]
[352215116,1739002240387,-500.0,0.00011095,2]
[352215117,1739002240396,-500.0,0.00011095,2]
[352215118,1739002240405,-500.0,0.00011095,2]
[352215119,1739002240414,-500.0,0.00011095,2]
[352215120,1739002240423,-500.0,0.00011095,2]
[352215121,1739002240432,-680.41,0.00011095,2]
[352215122,1739002240442,-500.0,0.00011095,2]
[352215123,1739002240451,-632.19,0.00011095,2]
[352215124,1739002240460,-500.0,0.00011095,2]
[352215125,1739002240469,-597.33,0.00011095,2]
[352215126,1739002240479,-500.0,0.00011095,2]
[352215127,1739002240489,-500.0,0.00011095,2]
[352215128,1739002240498,-500.0,0.00011095,2]
[352215129,1739002240508,-500.0,0.00011095,2]
[352215130,1739002240517,-152.80951529,0.00011095,2]
[352215131,1739002240526,-500.0,0.00011095,2]
[352215132,1739002240535,-500.0,0.00011095,2]
[352215133,1739002240546,-500.0,0.00011095,2]
[352215134,1739002240555,-500.0,0.00011095,2]
[352215135,1739002240565,-500.0,0.00011095,2]
[352215136,1739002240574,-500.0,0.00011095,2]
[352215137,1739002240585,-500.0,0.00011095,2]
[352215138,1739002240595,-1119.43,0.00011095,2]
[352215139,1739002240604,-500.0,0.00011095,2]
[352215140,1739002240613,-500.0,0.00011095,2]
[352215141,1739002240622,-1131.56,0.00011095,2]
[352215142,1739002240632,-500.0,0.00011095,2]
[352215143,1739002240642,-500.0,0.00011095,2]
[352215144,1739002240651,-500.0,0.00011095,2]
[352215145,1739002240663,-500.0,0.00011095,2]
[352215146,1739002240672,-500.0,0.00011095,2]
[352215147,1739002240685,-500.0,0.00011095,2]
[352215149,1739002240695,-812.23,0.00011095,2]
[352215150,1739002240704,-500.0,0.00011095,2]
[352215152,1739002240713,-500.0,0.00011095,2]
[352215153,1739002240724,-621.82,0.00011095,2]
[352215155,1739002240733,-500.0,0.00011095,2]
[352215156,1739002240742,-500.0,0.00011095,2]
[352215158,1739002240754,-500.0,0.00011095,2]
[352215159,1739002240764,-500.0,0.00011095,2]
[352215160,1739002240773,-500.0,0.00011095,2]
[352215161,1739002240782,-500.0,0.00011095,2]
[352215162,1739002240792,-500.0,0.00011095,2]
[352215164,1739002240803,-500.0,0.00011095,2]
[352215166,1739002240813,-500.0,0.00011095,2]
[352215167,1739002240822,-500.0,0.00011095,2]
[352215168,1739002240832,-1366.73,0.00011095,2]
[352215169,1739002240841,-500.0,0.00011095,2]
[352215170,1739002240851,-500.0,0.00011095,2]
[352215171,1739002240860,-500.0,0.00011095,2]
[352215172,1739002240870,-500.0,0.00011095,2]
[352215173,1739002240879,-500.0,0.00011095,2]
[352215174,1739002240888,-500.0,0.00011095,2]
[352215175,1739002240897,-500.0,0.00011095,2]
[352215176,1739002240907,-500.0,0.00011095,2]
[352215177,1739002240916,-500.0,0.00011095,2]
[352215178,1739002240925,-553.16,0.00011095,2]
[352215179,1739002240935,-609.89,0.00011095,2]
[352215180,1739002240944,-500.0,0.00011095,2]
[352215181,1739002240953,-500.0,0.00011095,2]
[352215182,1739002240963,-500.0,0.00011095,2]
[352215183,1739002240973,-500.0,0.00011095,2]
[352215184,1739002240982,-780.9,0.00011095,2]
[352215185,1739002240993,-536.89,0.00011095,2]
[352215186,1739002241002,-500.0,0.00011095,2]
[352215187,1739002241011,-503.89976115,0.00011095,2]
[352215188,1739002241021,-500.0,0.00011095,2]
[352215189,1739002241030,-17258.78,0.00011095,2]
[352215190,1739002241040,-516.49,0.00011095,2]
[352215191,1739002241049,-3152.89,0.00011095,2]
[352215192,1739002241058,-500.0,0.00011095,2]
[352215193,1739002241068,-1098.98,0.00011095,2]
[352215194,1739002241078,-500.0,0.00011095,2]
[352215195,1739002241087,-276.9602839,0.00011095,2]
[352215196,1739002241096,-500.0,0.00011095,2]
[352215197,1739002241105,-500.0,0.00011095,2]
[352215198,1739002241114,-868.87,0.00011095,2]
[352215199,1739002241123,-500.0,0.00011095,2]
[352215200,1739002241133,-432.35304554,0.00011095,2]
[352215201,1739002241142,-500.0,0.00011095,2]
[352215202,1739002241151,-500.0,0.00011095,2]
[352215203,1739002241161,-577.01,0.00011095,2]
[352215204,1739002241170,-500.0,0.00011095,2]
[352215205,1739002241179,-500.0,0.00011095,2]
[352215206,1739002241189,-500.0,0.00011095,2]
[352215207,1739002241199,-500.0,0.00011095,2]
[352215208,1739002241209,-500.0,0.00011095,2]
[352215209,1739002241218,-1248.14,0.00011095,2]
[352215210,1739002241228,-2467.84,0.00011095,2]
[352215211,1739002241237,-500.0,0.00011095,2]
[352215212,1739002241246,-500.0,0.00011095,2]
[352215213,1739002241255,-500.0,0.00011095,2]
[352215214,1739002241264,-500.0,0.00011095,2]
[352215215,1739002241275,-350.43639866,0.00011095,2]
[352215216,1739002241285,-500.0,0.00011095,2]
[352215217,1739002241295,-500.0,0.00011095,2]
[352215218,1739002241306,-2721.28,0.00011095,2]
[352215219,1739002241315,-500.0,0.00011095,2]
[352215220,1739002241325,-1343.26,0.00011095,2]
[352215221,1739002241334,-500.0,0.00011095,2]
[352215222,1739002241344,-500.0,0.00011095,2]
[352215223,1739002241354,-941.48,0.00011095,2]
[352215224,1739002241363,-636.83,0.00011095,2]
[352215225,1739002241371,-500.0,0.00011095,2]
[352215226,1739002241381,-500.0,0.00011095,2]
[352215227,1739002241390,-500.0,0.00011095,2]
[352215228,1739002241400,-500.0,0.00011095,2]
[352215229,1739002241410,-500.0,0.00011095,2]
[352215230,1739002241419,-500.0,0.00011095,2]
[352215231,1739002241428,-500.0,0.00011095,2]
[352215232,1739002241438,-861.13,0.00011095,2]
[352215233,1739002241612,-940.08,0.00011095,2]
[352215234,1739002241622,-2160.96,0.00011095,2]
[352215235,1739002241632,-500.0,0.00011095,2]
[352215236,1739002241642,-500.0,0.00011095,2]
[352215237,1739002241653,-500.0,0.00011095,2]
[352215238,1739002241662,-500.0,0.00011095,2]
[352215239,1739002241672,-1257.1,0.00011095,2]
[352215240,1739002241686,-1326.92,0.00011095,2]
[352215241,1739002241696,-500.0,0.00011095,2]
[352215242,1739002241706,-36551.32,0.00011095,2]
[352215243,1739002241715,-500.0,0.00011095,2]
[352215244,1739002241726,-10819.44,0.00011095,2]
[352215245,1739002241736,-1216.12,0.00011095,2]
[352215246,1739002241746,-500.0,0.00011095,2]
[352215247,1739002241759,-306.45783269,0.00011095,2]
[352215248,1739002241769,-1004.16,0.00011095,2]
[352215249,1739002241778,-500.0,0.00011095,2]
[352215250,1739002241788,-500.0,0.00011095,2]
[352215251,1739002241798,-500.0,0.00011095,2]
[352215252,1739002241807,-500.0,0.00011095,2]
[352215253,1739002241817,-500.0,0.00011095,2]
[352215254,1739002241827,-5269.89,0.00011095,2]
[352215255,1739002241837,-2264.18,0.00011095,2]
[352215256,1739002241847,-797.18,0.00011095,2]
[352215257,1739002241857,-500.0,0.00011095,2]
[352215258,1739002241867,-1712.87,0.00011095,2]
[352215259,1739002241876,-500.0,0.00011095,2]
[352215260,1739002241886,-500.0,0.00011095,2]
[352215261,1739002241895,-563.17,0.00011095,2]
[352215262,1739002241904,-971.61,0.00011095,2]
[352215263,1739002241914,-500.0,0.00011095,2]
[352215264,1739002241924,-1593.28,0.00011095,2]
[352215265,1739002241933,-500.0,0.00011095,2]
[352215266,1739002241942,-2771.28,0.00011095,2]
[352215267,1739002241952,-990.07,0.00011095,2]
[352215268,1739002241962,-500.0,0.00011095,2]
[352215269,1739002241971,-500.0,0.00011095,2]
[352215270,1739002241980,-500.0,0.00011095,2]
[352215271,1739002241990,-500.0,0.00011095,2]
[352215272,1739002241999,-1060.19,0.00011095,2]
[352215273,1739002242011,-500.0,0.00011095,2]
[352215274,1739002242021,-500.0,0.00011095,2]
[352215275,1739002242030,-1133.34,0.00011095,2]
[352215276,1739002242040,-584.28,0.00011095,2]
[352215277,1739002242049,-500.0,0.00011095,2]
[352215278,1739002242059,-2995.22,0.00011095,2]
[352215279,1739002242068,-500.0,0.00011095,2]
[352215280,1739002242077,-500.0,0.00011095,2]
[352215281,1739002242086,-500.0,0.00011095,2]
[352215282,1739002242096,-2177.95,0.00011095,2]
[352215283,1739002242106,-1209.83,0.00011095,2]
[352215284,1739002242116,-500.0,0.00011095,2]
[352215285,1739002242126,-500.0,0.00011095,2]
[352215286,1739002242135,-500.0,0.00011095,2]
[352215287,1739002242145,-500.0,0.00011095,2]
[352215288,1739002242155,-2956.32,0.00011095,2]
[352215289,1739002242165,-500.0,0.00011095,2]
[352215290,1739002242174,-500.0,0.00011095,2]
[352215291,1739002242183,-1056.59,0.00011095,2]
[352215292,1739002242194,-500.0,0.00011095,2]
[352215293,1739002242204,-504.76,0.00011095,2]
[352215294,1739002242213,-500.0,0.00011095,2]
[352215295,1739002242225,-500.0,0.00011095,2]
[352215296,1739002242234,-554.8,0.00011095,2]
[352215297,1739002242243,-1012.06,0.00011095,2]
[352215298,1739002242253,-500.0,0.00011095,2]
[352215299,1739002242263,-500.0,0.00011095,2]
[352215300,1739002242273,-500.0,0.00011095,2]